Cogmind - Beta 11.1 @@@ ROGUE MODE // 2022.07.11 @ 08:23:43 Player: Demise Result: Destroyed by D-53 Grenadier with Mini Grenade Launcher Performance ------------- Evolutions (0) 0 Regions Visited (2) 400 Robots Destroyed (30) 150 Value Destroyed (685) 685 Prototype IDs (5) 100 Alien Tech Used (0) 0 Bonus (8) 8 TOTAL SCORE: 1343 Bonus ------- High Alert Combat Kills 8 Cogmind --------- Core Integrity 0/250 Matter 279/300 Energy 250/250 System Corruption 0% Temperature Cool (0) Movement Rolling (110) Ox2 Location -10/Mines Parts ------- > --- POWER (1) -------- Ion Engine > --- PROPULSION (2) --- Wheel > --- UTILITY (2) ------ Large Storage Unit Core Shielding > --- WEAPON (2) ------- Assault Rifle Assault Rifle > --- INVENTORY (15) --- Wheel Wheel Seismic Detector Seismic Detector Hacking Suite Assault Rifle Assault Rifle Assault Rifle Assault Rifle Assault Rifle Rocket Launcher Peak State ------------ > --- POWER ------------ Ion Engine > --- PROPULSION ------- Wheel Wheel > --- UTILITY ---------- Small Storage Unit Seismic Detector > --- WEAPON ----------- Medium Laser Beam Rifle > --- INVENTORY -------- Wheel Wheel Power Shielding Small Laser Small Laser Light Assault Rifle Grenade Launcher [Rating: 8] Favorites ----------- Power Ion Engine Engine Ion Engine Propulsion Wheel Wheel Wheel Utility Small Storage Unit Device Seismic Detector Storage Small Storage Unit Processor Signal Interpreter Protection Core Shielding Weapon Assault Rifle Energy Gun Medium Laser Ballistic Gun Assault Rifle Launcher Grenade Launcher Build | -11 -10 -10 ------- Run | Scr Mat Min Slots Evolved . | . . . Power . | . . . Propulsion . | . . . Utility . | . . . Weapon . | . . . Parts Attached 31 | 7 23 1 Power 3 | 1 2 . Engine 3 | 1 2 . Core . | . . . Reactor . | . . . Propulsion 5 | 2 3 . Treads . | . . . Leg . | . . . Wheel 5 | 2 3 . Hover . | . . . Flight . | . . . Utility 10 | 2 7 1 Device 4 | 1 3 . Storage 2 | 1 1 . Processor 1 | . 1 . Hackware . | . . . Protection 3 | . 2 1 Artifact . | . . . Weapon 13 | 2 11 . Energy Gun 2 | . 2 . Energy Cannon . | . . . Ballistic Gun 9 | 2 7 . Ballistic Cannon . | . . . Launcher 2 | . 2 . Special Weapon . | . . . Impact Weapon . | . . . Slashing Weapon . | . . . Piercing Weapon . | . . . Special Melee Weapon . | . . . Unidentified Prototypes . | . . . Parts Lost 4 | . 3 1 Power 1 | . 1 . Propulsion 2 | . 1 1 Utility . | . . . Weapon 1 | . 1 . Highest Loss Streak 1 | . 1 1 To Critical Strikes . | . . . Average Slot Usage (%) 97 | . 97 100 Engine 13 | . 13 14 Wheel 27 | . 27 28 Device 6 | . 5 14 Storage 14 | . 14 14 Processor 1 | . 1 . Protection 6 | . 7 . Energy Gun 2 | . 3 . Ballistic Gun 24 | . 23 28 Naked Turns . | . . . Heaviest Build 30 | 11 30 30 Greatest Support 20 | 20 20 20 Greatest Overweight (x) 1 | . 1 1 Average Overweight (x) . | . . 1 Largest Inventory Capacity 15 | 8 15 15 Average Capacity 9 | 6 9 15 Most Carried 11 | 5 11 11 Average Carried 7 | 3 7 11 Final Capacity 15 | 8 15 15 Final Carried 11 | 3 11 11 Class Distribution -------------------- 100% | Mutant Dominant Class ---------------- Mutant | -10/Materials Mutant | -10/Mines Resources | -11 -10 -10 ----------- Run | Scr Mat Min Matter Collected 732 | 300 432 . Remotely . | . . . Salvage Created 923 | 119 804 . Parts 63 | 7 56 . Haulers Intercepted 2 | . 2 . Recyclers Shooed 2 | 1 1 . Parts Field Recycled . | . . . Retrieved Matter . | . . . Parts Self-Destructed . | . . . Prevented . | . . . Kills | -11 -10 -10 ------- Run | Scr Mat Min Combat Hostiles Destroyed 16 | . 16 . Guns 12 | . 12 . AOE 4 | . 4 . Classes Destroyed 8 | 2 6 . Worker 3 | . 3 . Builder 2 | . 2 . Tunneler 3 | 2 1 . Hauler 2 | . 2 . Recycler 1 | 1 . . Operator 1 | . 1 . Watcher 2 | . 2 . Grunt 16 | . 16 . Best Kill Streak 9 | 2 9 . Combat Bots Only 6 | . 6 . Max Kills in Single Turn 4 | 1 4 . Gunslinging . | . . . Exploded 2 | . 2 . Melee . | . . . Uniques/NPCs Destroyed . | . . . Combat | -11 -10 -10 -------- Run | Scr Mat Min Damage Taken 829 | . 612 217 Core 260 | . 213 47 Absorbed by Shields . | . . . Redirected to Shielding 22 | . 18 4 Regen/Repaired (Parts) 67 | . 67 . Core Remaining (%) 100 | 100 . . Volleys Fired 89 | 15 73 1 Largest 2 | 2 2 2 Hottest 70 | 40 70 40 Shots Fired 174 | 30 142 2 Gun 170 | 30 138 2 Cannon . | . . . Launcher 4 | . 4 . Special . | . . . Kinetic 159 | 30 127 2 Thermal 11 | . 11 . Explosive 4 | . 4 . Electromagnetic . | . . . Robot Hit Streak 13 | 6 13 2 Robot Miss Streak 4 | 1 4 1 Penetration Max . | . . . Secondary Targets 1 | . 1 . Max Gunslinging Chain 1 | . 1 . Shots Hit Robots 116 | 21 94 1 Core Hits 58 | 8 49 1 Critical Kills 1 | . 1 . Critical Parts Destroyed . | . . . Critical Strikes 3 | . 3 . Burn 2 | . 2 . Destroy 1 | . 1 . Melee Attacks . | . . . Impact . | . . . Slashing . | . . . Piercing . | . . . Sneak Attacks . | . . . Combat Hostiles . | . . . Follow-up Attacks . | . . . Damage Inflicted 1708 | 163 1530 15 Guns 1082 | 163 904 15 Cannons . | . . . Explosions 626 | . 626 . Melee . | . . . Ramming . | . . . Kinetic 948 | 163 770 15 Thermal 134 | . 134 . Explosive 626 | . 626 . Electromagnetic . | . . . Impact . | . . . Slashing . | . . . Piercing . | . . . Highest Corruption . | . . . Average Corruption . | . . . Corruption Purged . | . . . Corruption Blocked . | . . . Overload Shots . | . . . Overflow Damage 65 | . 65 . Projectiles . | . . . Explosions 65 | . 65 . Melee . | . . . Knockbacks . | . . . Impact . | . . . Kinetic . | . . . Secondary . | . . . Self-Inflicted Damage . | . . . Shots . | . . . Rammed . | . . . Targets Rammed . | . . . Kicked . | . . . Crushed . | . . . Highest Temperature 174 | . 174 . Average Temperature 39 | . 39 . Received Heat Transfer 345 | . 345 . Siege Activations . | . . . Robots Corrupted . | . . . Combat Hostiles . | . . . Parts Fried . | . . . Impact Corruptions . | . . . Robots Melted . | . . . Combat Hostiles . | . . . Parts Melted 3 | . 3 . Heat Transferred 518 | . 518 . Parts Sabotaged . | . . . Parts Stolen . | . . . Parts Stripped . | . . . Power Chain Reactions . | . . . Missiles Intercepted . | . . . Alert | -11 -10 -10 ------- Run | Scr Mat Min Peak Influence 462 | 15 462 135 Initial 135 | . 9 135 Average 260 | 7 298 128 Maximum Alert Level 2 | . 2 . Low Security (%) 36 | 100 23 100 Level 1 51 | . 62 . Level 2 11 | . 14 . Level 3 . | . . . Level 4 . | . . . Level 5 . | . . . High Security . | . . . Max Security . | . . . Squads Dispatched 7 | . 7 . Investigation 6 | . 6 . Extermination . | . . . Reinforcement 1 | . 1 . Assault . | . . . Garrison . | . . . Intercept . | . . . Searches Triggered . | . . . Construction Impeded . | . . . Haulers Reinforced . | . . . Active Scanning Responses . | . . . Cargo Convoy Interrupts . | . . . Stealth | -11 -10 -10 --------- Run | Scr Mat Min Distress Signals 1 | . 1 . Communications Jammed . | . . . Distress Signals . | . . . Times Spotted 25 | . 23 2 Peak Tracking Total 5 | . 5 2 Tactical Retreats . | . . . Traps | -11 -10 -10 ------- Run | Scr Mat Min Traps Triggered 3 | . 3 . Indirectly . | . . . Trap Hack Attempts . | . . . Triggered . | . . . Disarmed . | . . . Reprogrammed . | . . . Reused . | . . . Traps Extracted . | . . . Installed . | . . . Triggered . | . . . Machines | -11 -10 -10 ---------- Run | Scr Mat Min Machines Disabled 2 | . 2 . Max in Single Turn 1 | . 1 . Machines Sabotaged . | . . . Garrisons Compromised . | . . . Overloaded Fab Kills . | . . . Hacking | -11 -10 -10 --------- Run | Scr Mat Min Machines Accessed 10 | . 10 . Terminals 7 | . 7 . Fabricators . | . . . Repair Stations 1 | . 1 . Recycling Units 2 | . 2 . Scanalyzers . | . . . Garrison Access . | . . . Total Hacks 40 | . 40 . Successful 29 | . 29 . Failed 11 | . 11 . Catastrophic . | . . . Database Lockouts . | . . . Manual 24 | . 24 . Terminals 31 | . 31 . Fabricators . | . . . Repair Stations 4 | . 4 . Recycling Units 5 | . 5 . Scanalyzers . | . . . Garrison Access . | . . . Terminal Hacks 15 | . 15 . Robot Analysis 11 | . 11 . Prototype ID Bank 3 | . 3 . Hauler Manifests 1 | . 1 . Fabricator Hacks . | . . . Repair Station Hacks 4 | . 4 . Scan Component 2 | . 2 . Repair 2 | . 2 . Recycling Unit Hacks 3 | . 3 . Retrieve Components 3 | . 3 . Scanalyzer . | . . . Garrison Access Hacks . | . . . Unauthorized Hacks 7 | . 7 . Terminals 5 | . 5 . Botnet 4 | . 4 . Operators 1 | . 1 . Fabricators . | . . . Repair Stations . | . . . Recycling Units 2 | . 2 . Tunnel 2 | . 2 . Scanalyzers . | . . . Garrison Access . | . . . Data Cores Recovered . | . . . Used . | . . . Hacking Detections 9 | . 9 . Full Trace Events 6 | . 6 . Feedback Events . | . . . Feedback Blocked . | . . . Robot Schematics Acquired . | . . . Robots Built . | . . . Authchips . | . . . Time . | . . . Total Robot Build Rating . | . . . Part Schematics Acquired . | . . . Parts Built . | . . . Authchips . | . . . Time . | . . . Total Part Build Rating . | . . . Parts Repaired 2 | . 2 . Time 52 | . 52 . Parts Recycled . | . . . Recycled Matter . | . . . Retrieved Matter . | . . . Retrieved Components 2 | . 2 . Parts Scanalyzed . | . . . Part Schematics Acquired . | . . . Parts Damaged . | . . . Bothacking | -11 -10 -10 ------------ Run | Scr Mat Min Used RIF Installer . | . . . Robots Hacked . | . . . Non-combat . | . . . Combat . | . . . Robot Hacks Applied . | . . . Relay Couplers Released . | . . . Fabnet Peak Effective % . | . . . Robots Rewired . | . . . Allies Hacked . | . . . Hacks Repelled . | . . . Allies | -11 -10 -10 -------- Run | Scr Mat Min Total Allies 3 | . . 3 Largest Group 3 | . . 3 Highest-Rated Group 40 | . . 40 Highest-Rated Ally 16 | . . 16 Total Orders . | . . . Ally Attacks 9 | . . 9 Total Damage 85 | . . 85 Kills . | . . . Allies Corrupted . | . . . Allies Melted . | . . . Intel | -11 -10 -10 ------- Run | Scr Mat Min Robot Analysis Total 11 | . 11 . Derelict Logs Recovered . | . . . Drone Launches . | . . . Drone Recoveries . | . . . Exploration | -11 -10 -10 ------------- Run | Scr Mat Min Turns Passed 1175 | 82 973 120 Spaces Moved 927 | 46 772 109 Core 31 | 31 . . Treads . | . . . Legs . | . . . Wheels 896 | 15 772 109 Hover . | . . . Flight . | . . . Fastest Speed 50 | 50 80 95 Average Speed 83 | 59 83 95 Slowest Speed 95 | 80 95 95 Overloaded Moves . | . . . Propulsion Burnouts . | . . . Robots Hopped . | . . . Cave-ins Triggered . | . . . Exploration Rate (%) 40 | 4 98 19 Regions Visited 2 Branch Regions 1 Pre-discovered Areas 2 | . 2 . Known Exits Taken 1 | . 1 . Unknown Exits Taken 1 | 1 . . Scrap Searched . | . . . Spaces Dug 9 | . 9 . Terrain Destroyed 28 | . 28 . Melee . | . . . Projectile . | . . . AOE 28 | . 28 . Terrain Rammed . | . . . Walls Destroyed . | . . . Machines Disabled . | . . . Actions | -11 -10 -10 --------- Run | Scr Mat Min Total 1182 | 75 984 123 Wait 92 | . 80 12 Move 925 | 45 771 109 Hop . | . . . Pick Up 26 | 8 18 . Fast Attach 8 | 2 6 . Attach 9 | 5 4 . Detach 3 | . 3 . Swap 14 | . 13 1 Drop 16 | . 16 . Fire 89 | 15 73 1 Melee . | . . . Ram . | . . . Kick . | . . . Crush . | . . . Escape Stasis . | . . . Rewire . | . . . Trap . | . . . Miscellaneous . | . . . Route ------- -11/Scrapyard -10/Materials (discovered 4 exits: *Mat x3 / *Min) -10/Mines History --------- Turn | Location | Event 12 | -11/Scrapyard | Discovered new exit (range 16) 83 | -11/Scrapyard | Entered Materials 196 | -10/Materials | Discovered new exit (range 8) 273 | -10/Materials | Core integrity fell below 50% 315 | -10/Materials | Build established: Mutant 330 | -10/Materials | Repaired Wheel 358 | -10/Materials | Repaired Lgt. Assault Rifle 409 | -10/Materials | Discovered new exit (range 9) 572 | -10/Materials | Core integrity fell below 20% 634 | -10/Materials | Discovered new exit (range 15) 647 | -10/Materials | Identified exit to Materials 688 | -10/Materials | Discovered exit to Materials (range 8) 727 | -10/Materials | Identified exit to Mines 1056 | -10/Materials | Entered Mines 1059 | -10/Mines | Assisted by bots powering up and referring to "LRC-V3" 1118 | -10/Mines | Assembled infested the area 1176 | -10/Mines | Destroyed by D-53 Grenadier with Mini Grenade Launcher Last Messages --------------- 01047_ Machine disabled. 01047_ T-07 Excavator destroyed. 01050_ K-01 Serf collects debris. 01051_ Acquired 12 matter. 01052_ K-01 Serf collects debris. 01055_ Acquired Seismic Detector. 01055_ K-01 Serf collects debris. LOCATION=MINES GOAL=ESCAPE Something is scanning the area. 01059_ Trooper 1a: "Hello LRC-V3. What is your command?" 01059_ Mercenary 1a: "Hello LRC-V3. What is your command?" 01059_ Trooper 1b: "Hello LRC-V3. What is your command?" 01118_ ALERT: Infestation in the mines, dispatching Demolisher response squad. 01155_ C-30 ARC bursts open, deploying its payload. 01161_ Mercenary 1a destroyed. 01161_ Trooper 1a destroyed. 01172_ Wheel destroyed. 01174_ D-53 Grenadier destroyed. 01175_ The unstable cave ceiling collapses. Map ----- +----------------------------------------------------+ | ???????????????????????????????????????????????? | | ???????????????????????????????????????????????? | | ???????????????????????????????????????????????? | | ???????????????????????????????????????????????? | | ????????????????????????????????###?????##?????? | | ???????????????????????????????## ##??## ##????? | | ???????????????????????????????# #### #????? | | ???????????????????????????????# ## #?????? | | ??????????????????????????###### #??????? | | ??????????????????????????# ##?????? | | ??????????????????????????# #?????? | | ??????????????????????????# #?????? | | ??????????????????????????### ## ##?????? | | ???????????????????????????# ########??????? | | ????????????????????????#### ##?????????????? | | ????????????????????????# ##??????????????? | | ????????????????????????# ### #??????????????? | | ????????????????????????# # ##?????????????? | | ????????????????????????# #?????????????? | | ????????????????????????# ##?????????????? | | ??????????????????????### #?????????????? | | ?????????????????????## # # #?????????????? | | ?????????????????????# #?????????????? | | ???????? ????????# #?????????????? | | ???????? ### d #?????????????? | | ?????????# r @ [ #####????????? | | ????????????# ## ## = % #####????? | | ?????????????????????# # ##???? | | ???????????????????? % #???? | | ???????????????????#### ## #??? | | ??????????????????????# ?## #??? | | ??????????????????????# ??# #??? | | ??????????????????????#??# ### ##??? | | ??????????????????????? ##??# ####???? | | ????????????????????? #????# #??????? | | ???????????????????? %" ????? #??????? | | ??????????????????? ### ##????? #??????? | | ??????????????????? ???## ##??????? ??????? | | ?????????????????????????# #???????? ?????? | | ?????????????????????????## ?????????? ????? | | ??????????????????????????# #??????????? ???? | | ??????????????????????????# #????????????? ???? | | ?????????????????????????? ??????????????????? | | ???????????????????????????? ??????????????????? | | ???????????????????????????????????????????????? | | ???????????????????????????????????????????????? | | ???????????????????????????????????????????????? | | ???????????????????????????????????????????????? | | ???????????????????????????????????????????????? | | ???????????????????????????????????????????????? | +----------------------------------------------------+ Best States ------------- Heat Dissipation 25 Energy Generation 10 Energy Capacity 250 Matter Stores 300 Matter Capacity 300 Sight Range 16 Terrain Scan Density 10 Core Shielding 20 Power Shielding 33 Evasion (%) 50 Item Schematics ----------------- None Robot Schematics ------------------ None Fabricated ------------ Nothing Alien Tech Used ----------------- None Achievements -------------- None Challenges ------------ None Game ------ Seed CoreLaserBroadsword Manual? 0 Play Time 00:12:58 Cumulative 663.9 hours Start 2022.07.11 @ 08:10:40 End 2022.07.11 @ 08:23:43 Sessions 1 Manual Loads 0 Difficulty Rogue Special Mode None Game No. 551 Rogue 551 Adventurer 0 Explorer 0 Win Type - Total 8 Types 7/0/0/1/0/0/0/0/0 Lore% 75 Gallery% 86 Achievement% 69 Wizard Run 0 Options --------- ASCII 0 Keyboard 1 Movement Numpad Keybinds 0 Fullscreen 1 Font 12/Terminus Map View 83x54 Tactical HUD 1 Map Filters NONE Filters NONE Steam 1 RUN: 71865aff-22bb-480f-8610-ae462b250c04